[Event "*** Titled Tuesday Blitz"]
[Site "Chess.com"]
[Date "2019.08.06"]
[Round "5"]
[White "Dhaydon19"]
[Black "Kubas1010"]
[Result "1-0"]
[WhiteElo "2612"]
[BlackElo "2573"]
[TimeControl "180+2"]
[EndTime "14:04:14 PDT"]
[Termination "Dhaydon19 won by resignation"]

1. d4 {[%clk 0:03:01.8]} 1... Nf6 {[%clk 0:03:00.1]} 2. c4 {[%clk 0:03:02.7]}
2... d6 {[%clk 0:03:01.5]} 3. Nf3 {[%clk 0:03:04.1]} 3... Nbd7 {[%clk
0:03:01.9]} 4. g3 {[%clk 0:03:05.4]} 4... e5 {[%clk 0:03:01.4]} 5. Nc3 {[%clk
0:03:06.6]} 5... g6 {[%clk 0:03:02.4]} 6. Bg2 {[%clk 0:03:07.8]} 6... Bg7 {[%clk
0:03:03.8]} 7. O-O {[%clk 0:03:09.2]} 7... O-O {[%clk 0:03:05.4]} 8. b3 {[%clk
0:03:10.1]} 8... Re8 {[%clk 0:03:02.3]} 9. dxe5 {[%clk 0:03:08.4]} 9... Nxe5
{[%clk 0:02:59.7]} 10. Nxe5 {[%clk 0:03:09.3]} 10... dxe5 {[%clk 0:03:00.5]} 11.
Qc2 {[%clk 0:03:10]} 11... c6 {[%clk 0:03:01.1]} 12. Rd1 {[%clk 0:03:10.4]}
12... Qa5 {[%clk 0:03:02]} 13. h3 {[%clk 0:03:00.3]} 13... Bf5 {[%clk
0:03:02.7]} 14. e4 {[%clk 0:03:00.6]} 14... Be6 {[%clk 0:03:03.7]} 15. Bd2
{[%clk 0:02:57.7]} 15... Qc7 {[%clk 0:03:02.3]} 16. Rac1 {[%clk 0:02:56.3]}
16... Rad8 {[%clk 0:03:02.7]} 17. Be3 {[%clk 0:02:57.1]} 17... Nd7 {[%clk
0:02:58.1]} 18. Qe2 {[%clk 0:02:46.8]} 18... Bf8 {[%clk 0:02:56.4]} 19. Nd5
{[%clk 0:02:45.7]} 19... Qb8 {[%clk 0:02:43.6]} 20. Bg5 {[%clk 0:02:44]} 20...
Bxd5 {[%clk 0:02:39.4]} 21. Bxd8 {[%clk 0:02:33.3]} 21... Bxc4 {[%clk
0:02:39.7]} 22. Qxc4 {[%clk 0:02:30.2]} 22... Rxd8 {[%clk 0:02:40.1]} 23. Qd3
{[%clk 0:02:27.1]} 23... Be7 {[%clk 0:02:37.1]} 24. Qc3 {[%clk 0:02:24.4]} 24...
Nf8 {[%clk 0:02:26.9]} 25. Rxd8 {[%clk 0:02:23.9]} 25... Bxd8 {[%clk 0:02:28]}
26. Rd1 {[%clk 0:02:12.1]} 26... Bb6 {[%clk 0:02:26.2]} 27. h4 {[%clk
0:02:11.5]} 27... Bd4 {[%clk 0:02:22.8]} 28. Qc4 {[%clk 0:02:11.1]} 28... Nd7
{[%clk 0:02:13.7]} 29. Bh3 {[%clk 0:02:10]} 29... Nb6 {[%clk 0:02:13.7]} 30. Qc2
{[%clk 0:02:05.6]} 30... Qd8 {[%clk 0:02:09.7]} 31. a4 {[%clk 0:02:03.6]} 31...
a5 {[%clk 0:02:08.5]} 32. Kg2 {[%clk 0:02:01.8]} 32... Qf6 {[%clk 0:02:07.2]}
33. Rd3 {[%clk 0:02:00.5]} 33... Kg7 {[%clk 0:02:01.8]} 34. Rf3 {[%clk
0:02:00.6]} 34... Qd6 {[%clk 0:02:01.9]} 35. Qd2 {[%clk 0:01:59.9]} 35... f6
{[%clk 0:02:00.7]} 36. h5 {[%clk 0:01:59.8]} 36... Qb4 {[%clk 0:01:56]} 37. Qc1
{[%clk 0:01:45.1]} 37... Na8 {[%clk 0:01:53.2]} 38. Be6 {[%clk 0:01:44.5]} 38...
Nc7 {[%clk 0:01:51.6]} 39. Bc4 {[%clk 0:01:40.4]} 39... Qd6 {[%clk 0:01:43.1]}
40. h6+ {[%clk 0:01:35.6]} 40... Kf8 {[%clk 0:01:44.1]} 41. Qd2 {[%clk
0:01:33.9]} 41... b6 {[%clk 0:01:43.5]} 42. Qg5 {[%clk 0:01:26.6]} 42... Ne8
{[%clk 0:01:41.2]} 43. Qg4 {[%clk 0:01:24.5]} 43... Ke7 {[%clk 0:01:33.6]} 44.
Qxg6 {[%clk 0:01:19.5]} 44... hxg6 {[%clk 0:01:34.1]} 45. h7 {[%clk 0:01:20.8]}
45... b5 {[%clk 0:01:25]} 46. axb5 {[%clk 0:01:20.8]} 46... cxb5 {[%clk
0:01:26.5]} 47. Bd5 {[%clk 0:01:16.6]} 47... Nc7 {[%clk 0:01:24]} 48. h8=Q
{[%clk 0:01:16.7]} 48... Nxd5 {[%clk 0:01:25.2]} 49. Qg7+ {[%clk 0:01:16]} 49...
Kd8 {[%clk 0:01:23.3]} 50. exd5 {[%clk 0:01:15.9]} 50... e4 {[%clk 0:01:24.5]}
51. Qg8+ {[%clk 0:01:05.9]} 51... Kc7 {[%clk 0:01:22.1]} 52. Rf4 {[%clk
0:01:06.5]} 52... f5 {[%clk 0:01:20]} 53. Rh4 {[%clk 0:01:05.3]} 53... Kb6
{[%clk 0:01:17.9]} 54. Rh6 {[%clk 0:01:01.8]} 54... Kc5 {[%clk 0:01:17.6]} 55.
Rxg6 {[%clk 0:00:49.1]} 55... Qxd5 {[%clk 0:01:18.8]} 56. Qf8+ {[%clk
0:00:48.1]} 1-0

[Event "*** Titled Tuesday Blitz"]
[Site "Chess.com"]
[Date "2019.08.06"]
[Round "5"]
[White "raviteja81293"]
[Black "Genghis_K"]
[Result "0-1"]
[WhiteElo "2607"]
[BlackElo "2881"]
[TimeControl "180+2"]
[EndTime "14:04:21 PDT"]
[Termination "Genghis_K won by checkmate"]

1. d4 {[%clk 0:03:01.9]} 1... Nf6 {[%clk 0:02:55.5]} 2. Nf3 {[%clk 0:03:01.1]}
2... e6 {[%clk 0:02:54.8]} 3. e3 {[%clk 0:03:01.9]} 3... c5 {[%clk 0:02:54.3]}
4. Bd3 {[%clk 0:03:01.2]} 4... Nc6 {[%clk 0:02:55.5]} 5. O-O {[%clk 0:03:02.4]}
5... d5 {[%clk 0:02:56.6]} 6. c3 {[%clk 0:03:03.8]} 6... Bd6 {[%clk 0:02:57.8]}
7. Nbd2 {[%clk 0:03:05.3]} 7... O-O {[%clk 0:02:54.8]} 8. Qe2 {[%clk 0:03:05.8]}
8... e5 {[%clk 0:02:44.2]} 9. dxc5 {[%clk 0:03:06.7]} 9... Bxc5 {[%clk
0:02:44.2]} 10. b4 {[%clk 0:03:08.2]} 10... Bd6 {[%clk 0:02:44.5]} 11. e4 {[%clk
0:03:09]} 11... Ne7 {[%clk 0:02:30.1]} 12. c4 {[%clk 0:02:56.6]} 12... dxe4
{[%clk 0:02:14]} 13. Nxe4 {[%clk 0:02:56.9]} 13... Nxe4 {[%clk 0:02:15]} 14.
Qxe4 {[%clk 0:02:37.1]} 14... f5 {[%clk 0:02:02.4]} 15. Qh4 {[%clk 0:02:36.9]}
15... e4 {[%clk 0:01:41]} 16. Ng5 {[%clk 0:02:26.5]} 16... h6 {[%clk 0:01:41.7]}
17. c5 {[%clk 0:02:27.9]} 17... Bxh2+ {[%clk 0:01:13.3]} 18. Kxh2 {[%clk
0:02:09.4]} 18... Qxd3 {[%clk 0:01:14.4]} 19. Re1 {[%clk 0:01:37.4]} 19... hxg5
{[%clk 0:01:12.4]} 20. Bxg5 {[%clk 0:01:38.4]} 20... Ng6 {[%clk 0:01:08.3]} 21.
Qh5 {[%clk 0:01:38.9]} 21... Kf7 {[%clk 0:01:09]} 22. Re3 {[%clk 0:01:35.1]}
22... Rh8 {[%clk 0:01:07.8]} 23. Qxh8 {[%clk 0:01:29.1]} 23... Nxh8 {[%clk
0:01:07.7]} 24. Rxd3 {[%clk 0:01:30.5]} 24... exd3 {[%clk 0:01:09.5]} 25. Rd1
{[%clk 0:01:32]} 25... Be6 {[%clk 0:01:01.7]} 26. Rxd3 {[%clk 0:01:32.8]} 26...
Ng6 {[%clk 0:01:03.1]} 27. a4 {[%clk 0:01:30.5]} 27... Ne5 {[%clk 0:01:03.2]}
28. Rd2 {[%clk 0:01:31.8]} 28... a6 {[%clk 0:00:59.5]} 29. f3 {[%clk 0:01:32.7]}
29... Ng6 {[%clk 0:00:55.1]} 30. b5 {[%clk 0:01:29.3]} 30... axb5 {[%clk
0:00:55.6]} 31. axb5 {[%clk 0:01:31.2]} 31... f4 {[%clk 0:00:56.8]} 32. c6
{[%clk 0:01:31.3]} 32... bxc6 {[%clk 0:00:55.7]} 33. bxc6 {[%clk 0:01:31]} 33...
Rh8+ {[%clk 0:00:57.3]} 34. Kg1 {[%clk 0:01:31.7]} 34... Rh5 {[%clk 0:00:58.6]}
35. Bd8 {[%clk 0:01:32.4]} 35... Rc5 {[%clk 0:00:59.8]} 36. c7 {[%clk
0:01:33.8]} 36... Rc1+ {[%clk 0:01:00.3]} 37. Kh2 {[%clk 0:01:34.2]} 37... Ne5
{[%clk 0:00:58.8]} 38. Re2 {[%clk 0:01:29.8]} 38... Rc5 {[%clk 0:00:43.9]} 39.
Re4 {[%clk 0:01:22.3]} 39... Nd3 {[%clk 0:00:28.8]} 40. Rd4 {[%clk 0:01:18.3]}
40... Rc3 {[%clk 0:00:28.4]} 41. Bg5 {[%clk 0:01:06.3]} 41... Kg6 {[%clk
0:00:18.5]} 42. Bd8 {[%clk 0:01:05.9]} 42... Kf5 {[%clk 0:00:16.1]} 43. Ra4
{[%clk 0:00:56.4]} 43... Rc2 {[%clk 0:00:12.5]} 44. Ra5+ {[%clk 0:00:56]} 44...
Kg6 {[%clk 0:00:13.9]} 45. Ra6 {[%clk 0:00:53.9]} 45... Kf7 {[%clk 0:00:13.9]}
46. Ra1 {[%clk 0:00:54.8]} 46... Ne5 {[%clk 0:00:11.1]} 47. Ra7 {[%clk
0:00:56.1]} 47... Nxf3+ {[%clk 0:00:11.6]} 48. Kh1 {[%clk 0:00:53.9]} 48... Rc1#
{[%clk 0:00:13.3]} 0-1

[Event "*** Titled Tuesday Blitz"]
[Site "Chess.com"]
[Date "2019.08.06"]
[Round "5"]
[White "GelmanAlexander"]
[Black "ChessyInstinct"]
[Result "1-0"]
[WhiteElo "2554"]
[BlackElo "2380"]
[TimeControl "180+2"]
[EndTime "14:04:32 PDT"]
[Termination "GelmanAlexander won by resignation"]

1. d4 {[%clk 0:03:01.9]} 1... d5 {[%clk 0:02:59.7]} 2. Nc3 {[%clk 0:03:02.9]}
2... Nf6 {[%clk 0:02:59.9]} 3. Bf4 {[%clk 0:03:03.9]} 3... c6 {[%clk 0:03:00.8]}
4. f3 {[%clk 0:03:04.5]} 4... Bf5 {[%clk 0:02:57.4]} 5. g4 {[%clk 0:03:05.4]}
5... Bg6 {[%clk 0:02:57.1]} 6. h4 {[%clk 0:03:06.5]} 6... h5 {[%clk 0:02:57.9]}
7. g5 {[%clk 0:03:07.2]} 7... Nfd7 {[%clk 0:02:59]} 8. e4 {[%clk 0:03:08.7]}
8... e6 {[%clk 0:02:53.8]} 9. Nge2 {[%clk 0:03:09.7]} 9... Bb4 {[%clk 0:02:52]}
10. a3 {[%clk 0:03:10.1]} 10... Ba5 {[%clk 0:02:52.9]} 11. Qd3 {[%clk
0:02:51.6]} 11... Bc7 {[%clk 0:02:30.1]} 12. O-O-O {[%clk 0:02:49.4]} 12... dxe4
{[%clk 0:02:24.3]} 13. fxe4 {[%clk 0:02:49.4]} 13... Na6 {[%clk 0:02:12.8]} 14.
Qg3 {[%clk 0:02:42.4]} 14... Rc8 {[%clk 0:01:53.8]} 15. Bh3 {[%clk 0:02:29.9]}
15... b5 {[%clk 0:01:30.6]} 16. d5 {[%clk 0:02:20.3]} 16... cxd5 {[%clk
0:01:16.9]} 17. exd5 {[%clk 0:02:19.7]} 17... e5 {[%clk 0:01:08.7]} 18. d6
{[%clk 0:01:35.7]} 18... Bb6 {[%clk 0:00:40.7]} 19. Bxe5 {[%clk 0:01:29.8]}
19... O-O {[%clk 0:00:39.7]} 20. Bxd7 {[%clk 0:01:09.1]} 20... Qxd7 {[%clk
0:00:39.8]} 21. Nf4 {[%clk 0:01:09.9]} 21... Bf5 {[%clk 0:00:25]} 22. Nxh5
{[%clk 0:00:59.6]} 22... Bg4 {[%clk 0:00:02.7]} 23. Nf6+ {[%clk 0:00:51.8]}
23... gxf6 {[%clk 0:00:02.5]} 24. gxf6 {[%clk 0:00:53.2]} 24... Rc4 {[%clk
0:00:03.5]} 25. Rhg1 {[%clk 0:00:47.6]} 25... Qf5 {[%clk 0:00:04.6]} 26. Rdf1
{[%clk 0:00:34.6]} 26... Qg6 {[%clk 0:00:05.1]} 27. h5 {[%clk 0:00:29.3]} 27...
Qg5+ {[%clk 0:00:04.9]} 28. Bf4 {[%clk 0:00:28.7]} 28... Rxf4 {[%clk 0:00:06.1]}
29. Rxf4 {[%clk 0:00:29.4]} 29... Bxg1 {[%clk 0:00:06.8]} 30. Ne4 {[%clk
0:00:25.5]} 30... Qh6 {[%clk 0:00:04.8]} 31. Qxg4+ {[%clk 0:00:25.3]} 31... Kh8
{[%clk 0:00:05.7]} 32. Kb1 {[%clk 0:00:23.9]} 32... Rg8 {[%clk 0:00:06.5]} 33.
Qf5 {[%clk 0:00:19.8]} 33... Be3 {[%clk 0:00:06.9]} 34. Rf3 {[%clk 0:00:20.2]}
34... Bd4 {[%clk 0:00:08]} 35. d7 {[%clk 0:00:21.2]} 35... Rg1+ {[%clk
0:00:08.7]} 36. Ka2 {[%clk 0:00:22.1]} 36... Rg8 {[%clk 0:00:10.6]} 37. Nd6
{[%clk 0:00:22.7]} 37... Qh7 {[%clk 0:00:03.2]} 38. Qd5 {[%clk 0:00:21.6]} 38...
Qxc2 {[%clk 0:00:03.4]} 39. Nxf7+ {[%clk 0:00:20.3]} 39... Kh7 {[%clk
0:00:04.3]} 40. Qxd4 {[%clk 0:00:19.7]} 40... Rg2 {[%clk 0:00:04.9]} 41. d8=Q
{[%clk 0:00:17.2]} 41... Nb4+ {[%clk 0:00:04.8]} 42. Qxb4 {[%clk 0:00:18.2]} 1-0

[Event "*** Titled Tuesday Blitz"]
[Site "Chess.com"]
[Date "2019.08.06"]
[Round "5"]
[White "FredddieCroderg"]
[Black "Roachelley"]
[Result "1-0"]
[WhiteElo "2160"]
[BlackElo "2212"]
[TimeControl "180+2"]
[EndTime "14:04:33 PDT"]
[Termination "FredddieCroderg won by checkmate"]

1. d4 {[%clk 0:03:01.9]} 1... d5 {[%clk 0:02:59.8]} 2. c4 {[%clk 0:03:02.6]}
2... c6 {[%clk 0:02:58.9]} 3. Nf3 {[%clk 0:03:02.7]} 3... Nf6 {[%clk 0:02:59.4]}
4. Nc3 {[%clk 0:03:03.6]} 4... e6 {[%clk 0:02:58.9]} 5. Bg5 {[%clk 0:03:03.3]}
5... dxc4 {[%clk 0:02:59.5]} 6. e4 {[%clk 0:03:01.3]} 6... b5 {[%clk 0:02:55.6]}
7. e5 {[%clk 0:03:02.1]} 7... h6 {[%clk 0:02:56.5]} 8. Bh4 {[%clk 0:03:03.6]}
8... g5 {[%clk 0:02:57.5]} 9. Nxg5 {[%clk 0:03:04.7]} 9... hxg5 {[%clk
0:02:59.4]} 10. Bxg5 {[%clk 0:03:05.8]} 10... Nbd7 {[%clk 0:03:00.8]} 11. exf6
{[%clk 0:03:05.9]} 11... Bb7 {[%clk 0:03:01.4]} 12. g3 {[%clk 0:03:06.5]} 12...
Qb6 {[%clk 0:03:02.2]} 13. Bg2 {[%clk 0:03:07.4]} 13... O-O-O {[%clk 0:03:01.8]}
14. O-O {[%clk 0:03:08.1]} 14... c5 {[%clk 0:02:51.2]} 15. d5 {[%clk 0:03:08.7]}
15... b4 {[%clk 0:02:49]} 16. Rb1 {[%clk 0:03:09.6]} 16... Qa6 {[%clk
0:02:48.9]} 17. dxe6 {[%clk 0:03:03.3]} 17... Bxg2 {[%clk 0:02:47.4]} 18. Kxg2
{[%clk 0:03:00]} 18... Qxe6 {[%clk 0:02:42.9]} 19. h4 {[%clk 0:02:52.4]} 19...
bxc3 {[%clk 0:02:36.5]} 20. bxc3 {[%clk 0:02:47.9]} 20... Ne5 {[%clk 0:02:34.8]}
21. Rb8+ {[%clk 0:02:29.2]} 21... Kxb8 {[%clk 0:02:31.5]} 22. Qxd8+ {[%clk
0:02:29.8]} 22... Kb7 {[%clk 0:02:27.3]} 23. Rb1+ {[%clk 0:02:26.5]} 23... Ka6
{[%clk 0:02:27.7]} 24. Qb8 {[%clk 0:00:51.5]} 24... Qc6+ {[%clk 0:02:13.8]} 25.
Kh3 {[%clk 0:00:51.7]} 25... Nf3 {[%clk 0:01:33]} 26. Bf4 {[%clk 0:00:31.4]}
26... Qe6+ {[%clk 0:00:59.8]} 27. Kg2 {[%clk 0:00:27.8]} 27... Qc6 {[%clk
0:00:37.7]} 28. Kh3 {[%clk 0:00:27.6]} 28... Qe6+ {[%clk 0:00:17]} 29. Kg2
{[%clk 0:00:28.3]} 29... Qc6 {[%clk 0:00:17.8]} 30. Kf1 {[%clk 0:00:17]} 30...
Nh2+ {[%clk 0:00:12.1]} 31. Ke1 {[%clk 0:00:16.1]} 31... Qe4+ {[%clk 0:00:11.3]}
32. Be3 {[%clk 0:00:16.7]} 32... Qh1+ {[%clk 0:00:08.6]} 33. Ke2 {[%clk
0:00:17.2]} 33... Qf3+ {[%clk 0:00:09.7]} 34. Kd2 {[%clk 0:00:17.8]} 34... Qd5+
{[%clk 0:00:10.5]} 35. Kc1 {[%clk 0:00:18.2]} 35... Bg7 {[%clk 0:00:08.3]} 36.
Qb2 {[%clk 0:00:16.5]} 36... Qh1+ {[%clk 0:00:07.6]} 37. Kc2 {[%clk 0:00:17.4]}
37... Qe4+ {[%clk 0:00:08.7]} 38. Kc1 {[%clk 0:00:17]} 38... Qh1+ {[%clk
0:00:09.7]} 39. Kd2 {[%clk 0:00:12.5]} 39... Qd5+ {[%clk 0:00:11.1]} 40. Bd4
{[%clk 0:00:12]} 40... Nf3+ {[%clk 0:00:10]} 41. Kc1 {[%clk 0:00:10]} 41... Rb8
{[%clk 0:00:08.7]} 42. Qa3# {[%clk 0:00:10.7]} 1-0

[Event "*** Titled Tuesday Blitz"]
[Site "Chess.com"]
[Date "2019.08.06"]
[Round "5"]
[White "Tiqr777"]
[Black "Gubajdullin"]
[Result "0-1"]
[WhiteElo "2558"]
[BlackElo "2611"]
[TimeControl "180+2"]
[EndTime "14:04:38 PDT"]
[Termination "Gubajdullin won by resignation"]

1. c4 {[%clk 0:03:01.6]} 1... Nf6 {[%clk 0:02:59.1]} 2. Nc3 {[%clk 0:03:02.2]}
2... c6 {[%clk 0:02:59.9]} 3. e4 {[%clk 0:03:01.8]} 3... d5 {[%clk 0:03:00.3]}
4. e5 {[%clk 0:03:02.6]} 4... Nfd7 {[%clk 0:02:58.4]} 5. e6 {[%clk 0:03:00.9]}
5... fxe6 {[%clk 0:02:58.1]} 6. d4 {[%clk 0:02:57.7]} 6... g6 {[%clk 0:02:54.1]}
7. Nf3 {[%clk 0:02:57.5]} 7... Bg7 {[%clk 0:02:54.2]} 8. h4 {[%clk 0:02:58.1]}
8... e5 {[%clk 0:02:45.3]} 9. cxd5 {[%clk 0:02:58.1]} 9... cxd5 {[%clk
0:02:41.9]} 10. Nxd5 {[%clk 0:02:53]} 10... Qa5+ {[%clk 0:02:40.7]} 11. Nc3
{[%clk 0:02:51.4]} 11... exd4 {[%clk 0:02:41.5]} 12. Nxd4 {[%clk 0:02:52]} 12...
Qe5+ {[%clk 0:02:30.6]} 13. Be3 {[%clk 0:02:45.3]} 13... Nc6 {[%clk 0:02:30]}
14. Nf3 {[%clk 0:02:36.1]} 14... Qa5 {[%clk 0:02:29.1]} 15. h5 {[%clk
0:02:33.8]} 15... gxh5 {[%clk 0:02:08]} 16. Be2 {[%clk 0:02:19.4]} 16... Nf6
{[%clk 0:02:07.4]} 17. Nd4 {[%clk 0:02:07.6]} 17... Ng4 {[%clk 0:02:02.4]} 18.
Nxc6 {[%clk 0:01:48.2]} 18... bxc6 {[%clk 0:02:02.3]} 19. Bxg4 {[%clk
0:01:47.5]} 19... Bxg4 {[%clk 0:02:01.5]} 20. Qb3 {[%clk 0:01:47.4]} 20... Qa6
{[%clk 0:01:59.9]} 21. f3 {[%clk 0:01:43.2]} 21... Bf5 {[%clk 0:01:40.5]} 22.
Rxh5 {[%clk 0:01:43.2]} 22... Qd3 {[%clk 0:01:32.5]} 23. Kf2 {[%clk 0:01:36.3]}
23... Bd4 {[%clk 0:01:30.5]} 24. Nd5 {[%clk 0:01:17.9]} 24... Qd2+ {[%clk
0:00:56.7]} 25. Kg1 {[%clk 0:00:40.1]} 25... cxd5 {[%clk 0:00:54.8]} 26. Bxd4
{[%clk 0:00:35.7]} 26... Qxd4+ {[%clk 0:00:54.5]} 27. Kh1 {[%clk 0:00:37.1]}
27... Bg6 {[%clk 0:00:34.9]} 28. Rxd5 {[%clk 0:00:35.2]} 28... Qh4+ {[%clk
0:00:28.4]} 29. Kg1 {[%clk 0:00:36.3]} 29... Kf8 {[%clk 0:00:21.2]} 30. Qb7
{[%clk 0:00:31.7]} 30... Kg7 {[%clk 0:00:20.9]} 31. Rd7 {[%clk 0:00:28.2]} 31...
Rhe8 {[%clk 0:00:19.4]} 32. Qc7 {[%clk 0:00:27.5]} 32... Rac8 {[%clk 0:00:18.1]}
33. Qxa7 {[%clk 0:00:26.7]} 33... Rc2 {[%clk 0:00:16]} 34. Qe3 {[%clk
0:00:26.2]} 34... Qg3 {[%clk 0:00:15.5]} 35. Rxe7+ {[%clk 0:00:26.8]} 35... Rxe7
{[%clk 0:00:14.8]} 36. Qxe7+ {[%clk 0:00:28.3]} 36... Kh6 {[%clk 0:00:14.9]} 37.
Qe3+ {[%clk 0:00:17.6]} 37... Kh5 {[%clk 0:00:15.3]} 38. Qc5+ {[%clk 0:00:18.8]}
38... Rxc5 {[%clk 0:00:14.9]} 0-1

[Event "*** Titled Tuesday Blitz"]
[Site "Chess.com"]
[Date "2019.08.06"]
[Round "5"]
[White "sebsep"]
[Black "BoboHead"]
[Result "0-1"]
[WhiteElo "2108"]
[BlackElo "2154"]
[TimeControl "180+2"]
[EndTime "14:04:38 PDT"]
[Termination "BoboHead won by resignation"]

1. e4 {[%clk 0:02:45.5]} 1... c5 {[%clk 0:02:34.9]} 2. Nf3 {[%clk 0:02:46.4]}
2... e6 {[%clk 0:02:34]} 3. d4 {[%clk 0:02:46.9]} 3... cxd4 {[%clk 0:02:35.9]}
4. Nxd4 {[%clk 0:02:48.2]} 4... a6 {[%clk 0:02:35.9]} 5. Nc3 {[%clk 0:02:47.1]}
5... Qc7 {[%clk 0:02:33.3]} 6. Be3 {[%clk 0:02:47]} 6... b5 {[%clk 0:02:28]} 7.
a3 {[%clk 0:02:43.6]} 7... Bb7 {[%clk 0:02:21.7]} 8. Bd3 {[%clk 0:02:40.2]} 8...
Nf6 {[%clk 0:02:22.3]} 9. O-O {[%clk 0:02:38.8]} 9... d6 {[%clk 0:02:16.9]} 10.
Kh1 {[%clk 0:02:38.5]} 10... Nbd7 {[%clk 0:02:18]} 11. f3 {[%clk 0:02:09.5]}
11... Be7 {[%clk 0:02:15.8]} 12. Nb3 {[%clk 0:02:05.9]} 12... O-O {[%clk
0:02:07.7]} 13. a4 {[%clk 0:02:03.6]} 13... b4 {[%clk 0:02:06]} 14. Ne2 {[%clk
0:02:05.1]} 14... d5 {[%clk 0:02:07.3]} 15. Ng3 {[%clk 0:01:55]} 15... Bd6
{[%clk 0:02:01.7]} 16. exd5 {[%clk 0:01:46.7]} 16... Nxd5 {[%clk 0:01:56.8]} 17.
Bf2 {[%clk 0:01:46.4]} 17... N7f6 {[%clk 0:01:54.1]} 18. Nd4 {[%clk 0:01:39.1]}
18... Bf4 {[%clk 0:01:42.1]} 19. Re1 {[%clk 0:01:35.8]} 19... h5 {[%clk
0:01:30.3]} 20. Nf1 {[%clk 0:01:24.9]} 20... Rfd8 {[%clk 0:01:04.9]} 21. Nb3
{[%clk 0:01:24.8]} 21... Bd6 {[%clk 0:00:57.1]} 22. a5 {[%clk 0:01:21.3]} 22...
Rd7 {[%clk 0:00:52.7]} 23. g3 {[%clk 0:01:20.4]} 23... h4 {[%clk 0:00:51]} 24.
Qe2 {[%clk 0:01:19.8]} 24... hxg3 {[%clk 0:00:45.8]} 25. hxg3 {[%clk 0:01:21.7]}
25... Ng4 {[%clk 0:00:46.8]} 26. Be4 {[%clk 0:01:16]} 26... Nxf2+ {[%clk
0:00:47.2]} 27. Qxf2 {[%clk 0:01:17]} 27... Rc8 {[%clk 0:00:44.5]} 28. Kg2
{[%clk 0:01:14.5]} 28... f5 {[%clk 0:00:42.1]} 29. Bxd5 {[%clk 0:01:12.4]} 29...
Bxd5 {[%clk 0:00:41.7]} 30. Ne3 {[%clk 0:01:13.9]} 30... Bb7 {[%clk 0:00:40.1]}
31. Nd4 {[%clk 0:01:08.5]} 31... Re7 {[%clk 0:00:32.1]} 32. Rad1 {[%clk
0:01:02]} 32... f4 {[%clk 0:00:23.9]} 33. gxf4 {[%clk 0:01:00.9]} 33... Bxf4
{[%clk 0:00:25]} 34. Ng4 {[%clk 0:00:58.3]} 34... e5 {[%clk 0:00:19.7]} 35. Nf5
{[%clk 0:00:56.2]} 35... Re6 {[%clk 0:00:21.1]} 36. Re2 {[%clk 0:00:55.3]} 36...
Rg6 {[%clk 0:00:18.4]} 37. Kg1 {[%clk 0:00:39]} 37... Rf8 {[%clk 0:00:19.1]} 38.
Nh4 {[%clk 0:00:39.2]} 38... Rc6 {[%clk 0:00:13]} 39. Rde1 {[%clk 0:00:35.5]}
39... e4 {[%clk 0:00:14.2]} 40. Rxe4 {[%clk 0:00:33.9]} 40... Rxc2 {[%clk
0:00:15.8]} 41. R4e2 {[%clk 0:00:35.4]} 41... Rc1 {[%clk 0:00:13.7]} 42. Rxc1
{[%clk 0:00:34.3]} 42... Qxc1+ {[%clk 0:00:14.2]} 43. Kg2 {[%clk 0:00:36.2]}
43... Qc4 {[%clk 0:00:10.1]} 44. Ng6 {[%clk 0:00:36.1]} 44... Rd8 {[%clk
0:00:06.7]} 45. Qh4 {[%clk 0:00:33]} 45... Qxe2+ {[%clk 0:00:06.6]} 0-1

[Event "*** Titled Tuesday Blitz"]
[Site "Chess.com"]
[Date "2019.08.06"]
[Round "5"]
[White "GremioPrudente"]
[Black "NoGalloNoParty"]
[Result "0-1"]
[WhiteElo "2229"]
[BlackElo "2318"]
[TimeControl "180+2"]
[EndTime "14:04:46 PDT"]
[Termination "NoGalloNoParty won on time"]

1. Nf3 {[%clk 0:03:01.9]} 1... Nf6 {[%clk 0:03:00.3]} 2. c4 {[%clk 0:03:01.6]}
2... c5 {[%clk 0:03:00]} 3. g3 {[%clk 0:03:02.2]} 3... d5 {[%clk 0:02:58.2]} 4.
Bg2 {[%clk 0:03:00.5]} 4... Nc6 {[%clk 0:02:57.3]} 5. cxd5 {[%clk 0:03:01.5]}
5... Nxd5 {[%clk 0:02:58]} 6. Nc3 {[%clk 0:03:03.4]} 6... Nc7 {[%clk 0:02:54.9]}
7. O-O {[%clk 0:03:02]} 7... e5 {[%clk 0:02:55.3]} 8. d3 {[%clk 0:02:37.2]} 8...
Be7 {[%clk 0:02:55.4]} 9. a3 {[%clk 0:02:22.1]} 9... O-O {[%clk 0:02:55]} 10.
Be3 {[%clk 0:01:57.1]} 10... Ne6 {[%clk 0:02:16.3]} 11. Rc1 {[%clk 0:01:50.2]}
11... Re8 {[%clk 0:02:08.7]} 12. Qc2 {[%clk 0:01:32.2]} 12... Ned4 {[%clk
0:02:04.4]} 13. Bxd4 {[%clk 0:01:28.4]} 13... exd4 {[%clk 0:02:04.2]} 14. Ne4
{[%clk 0:01:29.2]} 14... b6 {[%clk 0:02:00.9]} 15. Ned2 {[%clk 0:01:19.7]} 15...
Bd7 {[%clk 0:01:49.8]} 16. Rfe1 {[%clk 0:01:18.6]} 16... Rc8 {[%clk 0:01:46.2]}
17. Nc4 {[%clk 0:01:19.4]} 17... Be6 {[%clk 0:01:21.8]} 18. Nce5 {[%clk
0:01:14.6]} 18... Bd5 {[%clk 0:01:19.4]} 19. Nxc6 {[%clk 0:01:15.2]} 19... Bxc6
{[%clk 0:01:19.2]} 20. b3 {[%clk 0:01:08]} 20... Rc7 {[%clk 0:01:12.3]} 21. a4
{[%clk 0:01:09]} 21... Bf8 {[%clk 0:00:52.6]} 22. Qd2 {[%clk 0:01:07.5]} 22...
Bd5 {[%clk 0:00:42.9]} 23. Rb1 {[%clk 0:01:08.3]} 23... Rce7 {[%clk 0:00:39.1]}
24. Rb2 {[%clk 0:01:06.1]} 24... Re6 {[%clk 0:00:39.4]} 25. Ng5 {[%clk
0:00:59.9]} 25... Rg6 {[%clk 0:00:32.3]} 26. Nf3 {[%clk 0:00:38.7]} 26... Be7
{[%clk 0:00:32.9]} 27. Qf4 {[%clk 0:00:37.5]} 27... Bd6 {[%clk 0:00:30.9]} 28.
Qd2 {[%clk 0:00:38.2]} 28... Ba8 {[%clk 0:00:30.2]} 29. Kf1 {[%clk 0:00:25.5]}
29... Qd7 {[%clk 0:00:21.8]} 30. Kg1 {[%clk 0:00:25.1]} 30... Rh6 {[%clk
0:00:21.1]} 31. Qg5 {[%clk 0:00:21.3]} 31... Rg6 {[%clk 0:00:20.4]} 32. Qd2
{[%clk 0:00:19.4]} 32... Qe6 {[%clk 0:00:17.7]} 33. Kf1 {[%clk 0:00:17.1]} 33...
Qf6 {[%clk 0:00:18.8]} 34. Kg1 {[%clk 0:00:17.7]} 34... Rh6 {[%clk 0:00:19.8]}
35. Rf1 {[%clk 0:00:15.8]} 35... Qg6 {[%clk 0:00:20.1]} 36. Re1 {[%clk
0:00:16.2]} 36... Qh5 {[%clk 0:00:21.3]} 37. h4 {[%clk 0:00:15.7]} 37... Qg6
{[%clk 0:00:20]} 38. Qg5 {[%clk 0:00:16.6]} 38... Rh5 {[%clk 0:00:20.4]} 39.
Qxg6 {[%clk 0:00:17.8]} 39... hxg6 {[%clk 0:00:21.4]} 40. Kf1 {[%clk 0:00:18.2]}
40... Bd5 {[%clk 0:00:21.8]} 41. Kg1 {[%clk 0:00:18.7]} 41... Rf5 {[%clk
0:00:23]} 42. Kf1 {[%clk 0:00:18]} 42... Rf6 {[%clk 0:00:23.6]} 43. Kg1 {[%clk
0:00:18.8]} 43... Bxf3 {[%clk 0:00:24.3]} 0-1